bitfinex/quotes_ETHUSD_20210401
["timestamp","ask_amount","ask_price","bid_price","bid_amount"]
[1617267337947,17.1207,1938.2,1937.2,12.1767]
[1617267338148,2.02205719,1938.1,1937.2,12.1767]
[1617267338371,2.02205719,1938.1,1937.3,0.38]
[1617267338576,2.02205719,1938.1,1937.3,0.66]
[1617267338971,2.94,1938.0,1937.3,0.66]
[1617267339376,2.02205719,1938.1,1937.3,0.66]
[1617267340171,7.74036,1937.7,1937.3,0.66]
[1617267340374,2.01167886,1937.8,1937.3,0.66]
[1617267340572,2.01167886,1937.8,1937.4,0.4]
[1617267340995,1.01167886,1937.8,1937.5,0.39]
[1617267341594,1.01167886,1937.8,1937.7,8.18]
[1617267341994,47.1207,1938.2,1937.7,17.0976]
[1617267342194,2.0,1938.1,1937.7,17.0976]
[1617267342395,2.0,1938.1,1937.7,24.83368]
[1617267342596,2.0,1938.1,1937.7,28.55368]
[1617267342793,2.0,1938.1,1938.0,12.5]
[1617267342995,2.0,1938.1,1937.9,1.1383]
[1617267343196,2.0,1938.1,1937.9,1.5183]
[1617267343613,2.0,1938.1,1937.9,1.12792794]
[1617267344013,2.0,1938.1,1938.0,12.99]
[1617267344815,2.0,1938.1,1938.0,0.39]
[1617267345015,2.0,1938.1,1938.0,7.59]
[1617267345815,2.0,1938.1,1938.0,21.19]
[1617267346015,2.0,1938.1,1938.0,33.5]
[1617267346016,1.0,1938.1,1938.0,33.5]
[1617267346242,1.0220518,1938.2,1938.0,33.5]
[1617267346446,16.9804518,1938.7,1938.2,24.35]
[1617267346641,16.9804518,1938.7,1938.6,6.79]
[1617267346840,1.0,1938.9,1938.6,12.6591]
[1617267347042,0.95,1938.9,1938.7,0.4]
[1617267347241,0.95,1938.9,1938.8,11.46]
[1617267347441,0.95,1938.9,1938.8,0.41]
[1617267350272,21.29255,1939.9,1938.9,24.9]
[1617267350273,1.0,1939.9,1938.9,24.9]
[1617267350472,1.0,1939.9,1939.3,0.41]
[1617267350673,1.0,1939.9,1939.3,9.7118]
[1617267351071,0.2876752,1940.0,1939.4,6.75]
[1617267351272,0.2876752,1940.0,1939.4,7.13]
[1617267351501,0.2876752,1940.0,1939.7,0.41]
[1617267351703,0.2876752,1940.0,1939.6,0.38]
[1617267353111,0.2876752,1940.0,1939.0,0.09406894]
[1617267353311,0.2876752,1940.0,1938.6,0.37406894]
[1617267353312,0.14,1939.8,1938.6,0.37406894]
[1617267353513,7.73406,1939.3,1938.6,0.28]
[1617267353912,0.14,1939.1,1938.1,1.0]
[1617267354149,36.7265,1939.1,1938.1,1.0]
[1617267354353,0.14,1938.8,1938.1,1.0]
[1617267354548,30.0,1938.7,1938.1,1.0]
[1617267354748,7.73945,1938.4,1938.1,1.0]
[1617267354947,37.73945,1938.4,1938.1,1.0]
[1617267355146,5.66,1938.3,1938.1,1.0]
[1617267355347,13.0316,1938.3,1938.1,1.0]
[1617267356149,6.3716,1938.3,1938.2,0.4]
[1617267356348,0.14,1938.8,1938.2,0.4]
[1617267356550,30.75043,1939.1,1938.4,0.41]
[1617267356749,30.75043,1939.1,1938.5,0.4]
[1617267356750,17.8529,1939.1,1938.5,0.4]
[1617267357547,15.293,1939.6,1938.5,0.4]
[1617267357948,15.293,1939.6,1939.0,0.39]
[1617267358148,15.293,1939.6,1939.0,8.9907]
[1617267358149,7.7336,1939.5,1939.0,8.9907]
[1617267358349,15.293,1939.6,1939.1,0.39]
[1617267358550,15.293,1939.6,1939.3,0.41]
[1617267358750,15.293,1939.6,1939.0,11.64187651]
[1617267358951,15.293,1939.6,1939.1,1.35256305]
[1617267359149,17.8349,1939.8,1939.3,1.73285422]
[1617267359376,18.81674548,1940.3,1939.4,1.2]
[1617267359579,18.81674548,1940.3,1939.8,0.39]
[1617267359777,18.81674548,1940.3,1939.8,9.7195]
[1617267359975,18.1201,1940.3,1939.8,9.7195]
[1617267360176,18.1201,1940.3,1939.9,9.47490533]
[1617267360377,18.1201,1940.3,1939.9,12.33490533]
[1617267360576,18.1201,1940.3,1939.9,11.06]
[1617267360976,0.04870437,1940.6,1939.9,11.44]
[1617267361178,1.22942742,1940.7,1940.0,15.6]
[1617267361377,1.22942742,1940.7,1939.9,3.24]
[1617267361378,1.22942742,1940.7,1939.9,0.38]
[1617267361576,1.22942742,1940.7,1940.2,0.41]
[1617267361777,1.22942742,1940.7,1940.2,9.5128]
[1617267361999,1.22942742,1940.7,1940.2,9.1028]
[1617267362000,3.09127686,1940.6,1940.2,9.1028]
[1617267362205,3.09127686,1940.6,1940.2,5.9632]
[1617267362401,30.0,1940.5,1940.2,0.8312]
[1617267362600,30.0,1940.5,1940.1,1.78946763]
[1617267362601,38.1462413,1940.4,1940.1,1.78946763]
[1617267362800,38.1462413,1940.4,1938.9,0.97308172]
[1617267362801,39.3462413,1940.4,1938.9,0.97308172]
[1617267363002,0.38,1939.5,1938.9,0.97308172]
[1617267363203,0.38,1939.5,1938.3,1.2]
[1617267363402,0.38,1939.5,1938.7,0.09406894]
[1617267363601,0.41,1939.4,1938.6,0.09406894]
[1617267363802,0.41,1939.4,1938.2,0.09406894]
[1617267364003,0.41,1939.4,1938.3,0.38]
[1617267364004,0.14,1939.2,1938.3,0.38]
[1617267364206,0.14,1939.2,1938.2,0.37406894]
[1617267364208,7.73605,1938.9,1938.2,0.37406894]
[1617267364406,7.73605,1938.9,1938.2,0.28]
[1617267364618,7.73605,1938.9,1938.3,0.39]
[1617267364822,7.73605,1938.9,1938.3,0.4]
[1617267365018,7.73605,1938.9,1938.2,0.69]
[1617267365420,13.27443,1939.7,1938.4,0.39]
[1617267365620,12.89443,1939.7,1938.5,0.294]
[1617267365819,12.89443,1939.7,1939.0,0.38]
[1617267366019,6.22,1939.6,1938.6,0.09406894]
[1617267366218,0.14,1939.5,1938.6,0.09406894]
[1617267366418,2.14,1939.5,1938.9,0.4]
[1617267366620,7.73397,1939.4,1938.9,0.4]
[1617267366820,9.73397,1939.4,1938.9,0.4]
[1617267367259,9.73397,1939.4,1939.0,0.4]
[1617267367463,9.73397,1939.4,1939.1,0.4]
[1617267367660,2.0,1939.4,1939.1,0.4]
[1617267367862,2.0,1939.4,1939.3,0.39]
[1617267368061,2.0,1939.4,1939.3,8.8971]
[1617267368863,2.0,1939.4,1939.3,8.5071]
[1617267369665,2.0,1939.7,1939.3,8.5071]
[1617267369870,42.21181,1939.8,1939.3,8.5071]
[1617267369871,2.0,1939.4,1939.3,8.5071]
[1617267370873,2.0,1939.4,1939.3,8.9171]
[1617267371073,1.0,1939.4,1939.3,8.9171]
[1617267372076,1.0,1939.4,1939.3,8.5071]
[1617267372279,1.0,1939.4,1939.3,10.1071]
[1617267372496,4.7977577,1940.8,1939.3,10.1071]
[1617267372497,18.1735,1940.8,1939.4,28.4]
[1617267372701,14.3269,1940.4,1939.8,0.38]
[1617267372896,14.3269,1940.4,1939.7,1.2929]
[1617267373494,1.75,1940.5,1939.7,1.2929]
[1617267373495,1.34,1940.5,1939.8,0.39]
[1617267373696,1.34,1940.5,1939.7,1.2929]
[1617267373900,2.68,1940.2,1939.5,0.38]
[1617267374497,2.68,1940.2,1939.4,0.287]
[1617267374696,4.04942742,1940.2,1939.3,0.39]
[1617267374895,3.48,1940.1,1939.3,0.39]
[1617267375147,3.48,1940.1,1939.6,0.41]
[1617267375349,1.22942742,1940.2,1939.6,0.41]
[1617267375546,1.22942742,1940.2,1939.8,0.41]
[1617267375746,17.9755,1940.3,1939.9,0.39]
[1617267376347,17.9755,1940.3,1939.8,9.5705]
[1617267376546,25.70531,1940.3,1939.8,9.5705]
[1617267376747,2.68,1940.2,1939.8,9.5705]
[1617267376946,2.68,1940.2,1939.8,8.678]
[1617267377345,17.9755,1940.3,1939.8,8.678]
[1617267378159,7.72888,1940.5,1940.1,0.41]
[1617267378353,1.0,1940.9,1940.1,0.41]
[1617267378554,1.0,1940.9,1940.2,0.4]
[1617267378953,1.0,1940.9,1940.4,0.41]
[1617267378954,17.6735,1940.8,1940.4,0.41]
[1617267379354,17.6735,1940.8,1940.1,2.2293]
[1617267379553,17.6735,1940.8,1940.3,0.4]
[1617267379954,17.6735,1940.8,1940.1,1.134]
[1617267379955,2.98,1940.7,1940.1,1.534]
[1617267380155,1.98,1940.7,1940.1,1.534]
[1617267380373,7.72808,1940.8,1940.1,1.134]
[1617267380576,7.72808,1940.8,1940.1,1.534]
[1617267380773,10.69182924,1940.8,1940.1,0.68]
[1617267380974,7.72808,1940.8,1940.1,0.68]
[1617267381175,7.72808,1940.8,1940.3,0.39]
[1617267382777,2.0,1940.7,1940.3,0.39]
[1617267383584,9.72831,1940.7,1940.3,0.39]
[1617267383780,7.72831,1940.7,1940.3,0.39]
[1617267383978,2.0,1940.6,1940.3,0.39]
[1617267384181,2.0,1940.6,1940.1,0.68]
[1617267384378,2.0,1940.6,1940.1,0.28]
[1617267384578,2.0,1940.6,1940.1,0.67]
[1617267385179,8.7288,1940.6,1940.2,0.39]
[1617267385380,8.7288,1940.6,1940.2,7.775]
[1617267385580,1.0,1940.6,1940.3,0.41]
[1617267385785,1.0,1940.6,1940.4,0.4]
[1617267386980,1.0,1940.8,1940.4,0.4]
[1617267387180,1.0,1940.5,1940.4,0.4]
[1617267389383,1.0,1940.5,1940.4,9.95]
[1617267389583,1.0,1940.5,1940.4,13.17]
[1617267389785,1.0,1940.5,1940.4,14.37]
[1617267389984,1.0,1940.8,1940.4,14.37]
[1617267390185,1.0,1940.9,1940.7,0.39]
[1617267390388,1.0,1940.9,1940.8,31.15415976]
[1617267390586,1.0,1940.9,1940.8,32.2660261]
[1617267390807,1.0,1940.9,1940.8,38.4860261]
[1617267391011,1.0,1940.9,1940.8,37.37415976]
[1617267391408,1.0,1940.9,1940.8,22.77415976]
[1617267391607,1.0,1940.9,1940.8,25.08121446]
[1617267391806,1.0,1940.9,1940.8,23.97415976]
[1617267392006,1.0,1940.9,1940.8,23.47415976]
[1617267393436,1.0,1940.9,1940.8,31.19588976]
[1617267393640,0.76115101,1940.9,1940.8,31.19588976]
[1617267393837,1.01e-06,1940.9,1940.8,31.19588976]
[1617267394039,5.7e-06,1941.0,1940.8,42.45928635]
[1617267394238,1.0,1941.9,1941.0,1.49545119]
[1617267394438,1.0,1941.9,1941.6,0.38]
[1617267394638,1.0,1941.9,1941.6,8.4055]
[1617267394639,0.95,1941.9,1941.6,8.4055]
[1617267395239,17.7394,1942.1,1941.6,8.4055]
[1617267395240,17.6894,1942.1,1941.6,8.4055]
[1617267395441,17.6894,1942.1,1942.0,5.84]
[1617267395640,17.6894,1942.1,1942.0,10.1582]
[1617267395841,26.8306,1942.2,1942.0,11.79852441]
[1617267396066,11.95,1942.2,1942.0,11.79852441]
[1617267396464,11.95,1942.2,1942.1,20.53]
[1617267396666,11.95,1942.2,1942.1,25.37]
[1617267396865,11.95,1942.2,1942.1,26.57]
[1617267397266,11.95,1942.2,1942.1,33.82]
[1617267397470,10.39933328,1942.2,1942.1,27.76584859]
[1617267397666,0.04747762,1942.5,1942.2,38.55521206]
[1617267397871,0.04747762,1942.5,1942.4,33.79]
[1617267398070,0.04747762,1942.5,1942.4,44.2035]
[1617267398267,0.04747762,1942.5,1942.4,50.2035]
[1617267398466,7.62e-06,1942.5,1942.4,50.2035]
[1617267398702,7.62e-06,1942.5,1942.4,61.58312808]
[1617267398910,1.0,1942.9,1942.5,0.09406894]
[1617267399104,1.0,1942.9,1942.8,28.81]
[1617267399304,1.0,1942.9,1942.8,38.5171]
[1617267399704,2.1156634,1944.0,1942.8,49.5071]
[1617267399907,2.1156634,1944.0,1943.4,1.8261]
[1617267399908,2.2556634,1944.0,1943.4,1.8261]
[1617267400104,2.2556634,1944.0,1943.5,6.3]
[1617267400304,2.2556634,1944.0,1943.6,0.09406894]
[1617267400504,2.2556634,1944.0,1943.5,0.09406894]
[1617267400505,2.0,1943.9,1943.5,0.09406894]
[1617267400705,2.95539642,1943.8,1943.4,1.8261]
[1617267400905,2.0,1943.7,1943.4,1.8261]
[1617267401107,2.0,1943.7,1942.7,0.4]
[1617267401108,2.53,1943.7,1942.7,0.4]
[1617267401313,2.53,1943.7,1942.6,10.249281]
[1617267401314,2.53,1943.7,1942.6,0.09406894]
[1617267401315,2.0,1943.5,1942.6,0.09406894]
[1617267401517,2.0,1943.5,1942.8,0.41]
[1617267401714,0.14,1943.7,1942.7,0.39]
[1617267401715,2.0,1943.4,1942.7,0.39]
[1617267401913,2.0,1943.4,1942.7,0.48406894]
[1617267402115,1.95,1943.4,1942.7,0.09406894]
[1617267402314,1.95,1943.4,1942.6,0.47406894]
[1617267402315,12.62336642,1943.4,1942.6,0.47406894]
[1617267402515,9.80797,1943.4,1942.6,0.09406894]
[1617267402713,2.95539642,1943.3,1942.2,0.09406894]
[1617267402915,2.95539642,1943.3,1942.5,0.37406894]
[1617267402916,1.95,1943.2,1942.5,0.37406894]
[1617267403113,1.95,1943.2,1942.5,0.28]
[1617267403114,2.95539642,1943.1,1942.5,0.28]
[1617267403315,1.95,1943.0,1942.5,0.28]
[1617267403951,1.95,1943.0,1942.3,0.4]
[1617267404543,7.71979,1942.9,1942.3,0.4]
[1617267404744,7.71979,1942.9,1942.4,0.4]
[1617267404946,1.95,1942.8,1942.4,0.4]
[1617267405144,0.95,1942.8,1942.1,1.28]
[1617267405346,4.04063136,1942.8,1942.1,1.39]
[1617267405546,0.95,1942.6,1942.1,1.0]
[1617267405747,2.95063136,1942.5,1942.1,1.0]
[1617267405946,0.95,1942.4,1942.1,1.0]
[1617267406146,2.95063136,1942.3,1942.1,1.0]
[1617267406348,29.0,1942.2,1942.1,1.0]
[1617267406763,30.2,1942.2,1942.1,1.0]
[1617267406963,0.95,1942.2,1942.1,1.0]
[1617267407761,0.897573,1942.2,1942.1,1.0]
[1617267408161,14.547573,1942.2,1942.1,1.0]
[1617267408761,0.897573,1942.2,1942.1,1.0]
[1617267409064,1.2,1942.6,1942.1,1.0]
[1617267409065,1.2,1942.6,1942.1,3.08995651]
[1617267409293,1.2,1942.6,1942.5,25.26]
[1617267409491,20.0171,1943.4,1942.6,27.4]
[1617267409691,20.0171,1943.4,1942.7,24.537]
[1617267409692,5.01,1943.2,1942.7,24.537]
[1617267409889,5.01,1943.2,1942.9,7.71371]
[1617267410089,5.01,1943.2,1942.9,16.17691]
[1617267410090,4.01,1943.2,1942.9,16.17691]
[1617267410289,49.8014,1943.8,1943.1,14.26]
[1617267410490,46.8014,1943.8,1943.3,3.85686]
[1617267410691,46.8014,1943.8,1943.3,9.176]
[1617267410692,30.0,1943.8,1943.3,9.176]
[1617267410889,1.2,1943.7,1943.3,9.176]
[1617267412311,31.2,1943.7,1943.3,9.176]
[1617267412710,4.66,1943.6,1943.3,9.176]
[1617267412914,1.58,1943.5,1943.3,8.2217]
[1617267413113,1.58,1943.5,1942.3,0.09406894]
[1617267413315,0.38,1943.3,1942.4,0.4]
[1617267413715,10.0465,1943.3,1942.5,0.09406894]
[1617267413913,10.0465,1943.3,1942.4,0.49406894]
[1617267414113,9.6665,1943.3,1942.6,0.38]
[1617267414314,9.8065,1943.3,1942.6,0.38]
[1617267414545,17.38507,1943.3,1942.6,0.38]
[1617267414742,17.38507,1943.3,1942.5,0.28]
[1617267414743,9.6665,1943.3,1942.9,0.39]
[1617267414942,9.6665,1943.3,1943.0,0.4]
[1617267415144,9.6665,1943.3,1942.3,0.09406894]
[1617267415145,8.6665,1943.3,1942.3,0.09406894]
[1617267415341,8.6665,1943.3,1942.6,0.28]
[1617267415541,8.6665,1943.3,1942.8,0.39]
[1617267415941,8.6665,1943.3,1942.6,0.28]
[1617267415942,8.6665,1943.3,1943.2,14.78]
[1617267416145,1.9656634,1944.0,1943.2,16.267]
[1617267416343,1.9656634,1944.0,1943.4,0.38]
[1617267416745,1.9656634,1944.0,1943.5,0.39]
[1617267417373,1.9656634,1944.0,1943.4,1.9895]
[1617267417573,1.9656634,1944.0,1943.4,0.7895]
[1617267417773,1.9656634,1944.0,1943.4,1.1795]
[1617267417973,1.9656634,1944.0,1943.4,0.7895]
[1617267418173,1.9656634,1944.0,1943.4,1.1895]
[1617267418373,1.9656634,1944.0,1943.4,2.3895]
[1617267418773,1.9656634,1944.0,1943.7,0.4]
[1617267419079,1.9656634,1944.0,1943.7,5.9178]
[1617267419689,2.0,1943.9,1943.7,5.9178]
[1617267420089,1.0,1943.9,1943.7,5.9178]
[1617267420285,1.0,1943.9,1943.7,2.89804703]
[1617267421092,1.0,1943.9,1943.7,3.30804703]
[1617267421889,1.0,1943.9,1943.7,2.89804703]
[1617267422711,1.0,1943.9,1943.8,0.39]
[1617267423512,1.0,1943.9,1943.8,1.3046288]
[1617267423915,1.0,1943.9,1943.3,0.09406894]
[1617267424117,1.0,1943.9,1942.8,0.41]
[1617267424118,29.5818445,1943.8,1942.8,0.41]
[1617267424317,29.5818445,1943.8,1942.6,10.2883]
[1617267424318,1.0,1943.1,1942.6,10.2883]
[1617267424516,0.52,1943.2,1942.6,10.2883]
[1617267424517,0.14,1943.2,1942.6,10.2883]
[1617267424716,0.5,1943.0,1942.6,10.2883]
[1617267424944,0.5,1943.0,1942.5,3.85852]
[1617267425141,10.29044,1943.5,1942.5,0.09406894]
[1617267425341,2.0,1942.9,1942.8,0.38]
[1617267425540,2.0,1942.9,1942.5,0.09406894]
[1617267425541,2.0,1942.9,1942.7,0.38]
[1617267425939,2.0,1942.9,1942.4,0.28]
[1617267425940,2.0,1942.9,1942.8,10.08]
[1617267426141,2.0,1942.9,1942.8,10.43]
[1617267426639,2.0,1942.9,1942.8,11.56592982]
[1617267427058,2.0,1942.9,1942.8,19.38]
[1617267427259,2.0,1942.9,1942.8,22.28]
[1617267427462,2.0,1942.9,1942.8,15.90494259]
[1617267427663,18.1266,1943.9,1942.8,14.53]
[1617267427863,18.1266,1943.9,1943.1,1.4337087]
[1617267428064,18.1266,1943.9,1943.5,0.4]
[1617267428264,18.1266,1943.9,1943.5,10.6293]
[1617267428465,1.9656634,1944.0,1943.6,1.55077592]
[1617267428663,1.9656634,1944.0,1943.8,7.71205]
[1617267428862,1.9656634,1944.0,1943.8,15.50772]
[1617267430066,1.9656634,1944.0,1943.8,6.48206001]
[1617267430290,1.9656634,1944.0,1943.8,2.62639001]
[1617267430487,1.9656634,1944.0,1943.8,1.50772]
[1617267431288,1.9516634,1944.0,1943.7,3.85616]
[1617267431488,1.9516634,1944.0,1943.7,4.26616]
[1617267431687,1.9516634,1944.0,1943.8,1.58616281]
[1617267431888,1.9516634,1944.0,1943.8,9.31236281]
[1617267432489,1.9516634,1944.0,1943.8,9.70236281]
[1617267432918,1.9516634,1944.0,1943.9,10.39]
[1617267433119,1.9516634,1944.0,1943.9,14.55]
[1617267433319,0.40983681,1944.0,1943.9,14.55]
[1617267433919,0.40983681,1944.0,1943.9,15.75]
[1617267434319,0.82551509,1944.8,1944.1,0.09406894]
[1617267434520,0.82551509,1944.8,1944.4,0.41]
[1617267434720,0.82551509,1944.8,1944.6,0.41]
[1617267434721,0.68551509,1944.8,1944.6,0.41]
[1617267434920,18.8596,1944.9,1944.4,9.982]
[1617267435744,18.8596,1944.9,1944.4,9.572]
[1617267435943,18.8596,1944.9,1944.4,9.962]
[1617267436344,18.8596,1944.9,1944.5,0.38]
[1617267436945,18.8596,1944.9,1944.5,9.6889]
[1617267437147,18.8596,1944.9,1944.6,0.39]
[1617267437349,18.8596,1944.9,1944.6,3.32336852]
[1617267437550,14.1505,1945.3,1944.9,17.02618258]
[1617267437750,1.0,1945.9,1944.9,27.01038258]
[1617267437751,2.0,1945.2,1944.9,27.01038258]
[1617267437955,2.0,1945.5,1945.1,11.99]
[1617267438169,1.0,1945.9,1945.0,0.7886]
[1617267438170,2.0,1945.1,1945.0,0.7886]
[1617267438568,2.0,1945.1,1945.0,21.21731332]
[1617267438768,2.0,1945.1,1945.0,21.61731332]
[1617267438970,2.0,1945.1,1945.0,22.75763089]
[1617267439171,1.0,1945.1,1945.0,13.02891757]
[1617267439370,1.0,1945.1,1945.0,0.7886]
[1617267439770,1.0,1945.1,1945.0,20.1786]
[1617267439970,1.0,1945.1,1945.0,0.7886]
[1617267440170,1.0,1945.1,1944.9,9.9842]
[1617267440371,1.0,1945.1,1944.9,7.2442]
[1617267440990,1.0,1945.5,1944.9,7.2442]
[1617267441188,0.14,1945.8,1944.8,0.67]
[1617267441189,1.0,1945.0,1944.8,0.28]
[1617267441389,1.0,1945.0,1944.5,0.09406894]
[1617267441791,1.0,1945.0,1944.6,0.41]
[1617267441989,1.0,1945.0,1944.8,0.39]
[1617267442192,1.0,1945.0,1944.9,23.82408136]
[1617267442393,13.7989,1945.6,1945.2,3.85302]
[1617267442590,13.7989,1945.6,1945.2,14.40442]
[1617267442789,13.7989,1945.6,1945.2,10.5514]
[1617267442790,13.6489,1945.6,1945.2,10.5514]
[1617267443840,7.70829,1945.5,1945.2,8.5969]
[1617267444037,3.6,1945.4,1945.2,8.5969]
[1617267444239,3.6,1945.4,1945.2,5.58005976]
[1617267444240,2.2,1945.4,1945.2,5.58005976]
[1617267444437,2.2,1945.4,1944.4,3.02441024]
[1617267444640,2.2,1945.4,1944.4,0.09406894]
[1617267444838,2.2,1945.4,1944.4,1.58106894]
[1617267445038,8.22829,1945.5,1944.6,0.4]
[1617267445437,7.84829,1945.5,1944.9,0.39]
[1617267446442,23.92771,1945.6,1945.0,2.9303413]
[1617267446443,24.31771,1945.6,1945.0,2.9303413]
[1617267446642,24.31771,1945.6,1945.0,0.4]
[1617267446643,13.6489,1945.6,1945.0,0.4]
[1617267447242,13.6489,1945.6,1945.1,0.39]
[1617267447443,13.6489,1945.6,1945.1,8.2318]
[1617267448447,13.6489,1945.6,1945.5,0.4]
[1617267449066,13.6489,1945.6,1945.1,7.8418]
[1617267449266,12.6489,1945.6,1945.3,0.39]
[1617267449466,12.6489,1945.6,1945.0,9.18621]
[1617267449666,12.6489,1945.6,1945.0,0.68]
[1617267449868,12.6489,1945.6,1944.8,8.68763894]
[1617267449869,12.6489,1945.6,1944.8,0.09406894]
[1617267450068,12.6489,1945.6,1944.4,0.50406894]
[1617267450069,13.8489,1945.6,1944.4,0.50406894]
[1617267450268,7.84869,1945.4,1944.4,0.50406894]
[1617267450468,7.84869,1945.4,1944.4,0.41]
[1617267450469,0.4,1945.1,1944.4,0.41]
[1617267450667,2.7,1945.3,1944.5,0.39]
[1617267451301,2.7,1945.3,1944.0,0.4]
[1617267451302,0.38,1944.8,1944.0,0.4]
[1617267451512,7.2299,1944.8,1944.0,0.4]
[1617267451698,7.2299,1944.8,1943.7,0.41]
[1617267451699,0.14,1944.6,1943.7,0.41]
[1617267451898,0.14,1944.6,1943.2,0.09406894]
[1617267452098,0.14,1944.2,1943.2,0.09406894]
[1617267452300,7.71496,1943.9,1943.2,0.09406894]
[1617267452499,2.7,1943.8,1943.1,1.09406894]
[1617267452699,2.7,1943.8,1943.1,1.0]
[1617267452700,2.0,1943.7,1943.1,1.0]
[1617267453531,2.7157,1943.2,1943.1,1.0]
[1617267453920,2.7157,1943.2,1943.1,1.4]
[1617267454122,2.7157,1943.2,1943.1,1.0]
[1617267454320,2.7157,1943.2,1943.1,1.39]
[1617267454321,1.7157,1943.2,1943.1,1.39]
[1617267454524,4.7157,1943.2,1943.1,1.0]
[1617267454725,23.2157,1943.2,1943.1,1.0]
[1617267455720,22.5357,1943.2,1943.1,1.0]
[1617267455920,1.0357,1943.2,1943.1,0.09428451]
[1617267456945,7.7165,1943.5,1943.1,0.09428451]
[1617267457174,34.9668,1943.8,1943.1,0.09428451]
[1617267457175,1.0357,1943.2,1943.1,0.09428451]
[1617267459177,0.0357,1943.2,1943.1,0.09428451]
[1617267460176,0.0357,1943.3,1943.1,0.09428451]
[1617267460577,0.0357,1943.3,1943.1,0.04730064]
[1617267462194,0.0357,1943.3,1943.1,0.43730064]
[1617267462595,0.0357,1943.3,1943.1,0.04730064]
[1617267463199,0.0357,1943.4,1943.1,1.4520575]
[1617267463398,0.0357,1943.4,1943.2,0.38]
[1617267463799,0.0357,1943.4,1943.3,31.24462072]
[1617267463999,0.0357,1943.4,1943.3,8.13462072]
[1617267464202,16.0331,1943.8,1943.2,5.75]
[1617267464442,16.0331,1943.8,1943.1,0.04730064]
[1617267464443,2.0,1943.7,1943.1,0.04730064]
[1617267464643,2.0,1943.5,1943.1,0.04730064]
[1617267465446,9.71666,1943.5,1943.1,0.04730064]
[1617267465643,2.0,1943.3,1943.1,0.04730064]
[1617267465843,11.4159,1943.3,1943.1,0.04730064]
[1617267466245,21.45,1943.2,1943.1,0.04730064]
[1617267466444,20.45,1943.2,1943.1,0.04730064]
[1617267467048,28.56797,1943.2,1943.1,0.04730064]
[1617267467244,12.3,1943.1,1942.1,1.0]
[1617267467443,12.3,1943.1,1942.2,0.39]
[1617267467444,2.0,1943.0,1942.2,0.39]
[1617267467646,2.4,1943.0,1942.2,0.39]
[1617267467843,2.4,1943.0,1942.4,0.4]
[1617267467844,3.76,1942.9,1942.4,0.4]
[1617267468043,2.0,1943.0,1942.4,0.4]
[1617267468644,0.09406894,1942.7,1942.2,0.38]
[1617267468843,0.09406894,1942.7,1941.9,0.14]
[1617267469044,0.09406894,1942.7,1942.2,0.39]
[1617267469244,10.42341,1942.8,1942.2,0.39]
[1617267469245,1.38806894,1942.8,1942.2,0.39]
[1617267469448,1.38806894,1942.8,1941.6,10.29175]
[1617267469449,0.41,1942.5,1941.6,10.29175]
[1617267469675,0.41,1942.5,1941.1,4.2584473]
[1617267469676,1.0,1942.4,1941.5,0.41]
[1617267469874,1.0,1942.4,1941.1,1.0]
[1617267469875,1.301,1942.2,1941.3,0.4]
[1617267470075,1.301,1942.2,1941.2,0.14]
[1617267470076,0.38,1941.9,1941.2,0.14]
[1617267470274,0.38,1941.9,1941.1,1.0]
[1617267470275,1.0,1941.8,1941.1,1.0]
[1617267470674,0.09406894,1941.7,1941.1,1.0]
[1617267470875,0.09406894,1941.7,1941.3,0.41]
[1617267471074,0.09406894,1941.7,1941.1,1.0]
[1617267471276,0.09406894,1941.7,1941.1,1.39]
[1617267471675,0.47406894,1941.7,1941.1,1.0]
[1617267471877,1.0,1941.6,1941.1,1.0]
[1617267472499,1.0,1941.6,1941.1,1.39]
[1617267473302,0.09406894,1941.7,1941.1,1.39]
[1617267473303,1.09406894,1941.7,1941.1,1.39]
[1617267473500,1.0,1941.5,1941.1,1.0]
[1617267473900,6.9264,1941.5,1941.1,1.0]
[1617267474300,5.9264,1941.5,1941.1,1.0]
[1617267474501,5.9264,1941.5,1941.1,1.39]
[1617267474937,5.9264,1941.5,1941.1,1.0]
[1617267475739,5.9264,1941.5,1941.2,0.41]
[1617267475938,5.9264,1941.5,1941.1,1.0]
[1617267476137,5.9264,1941.5,1941.1,1.4]
[1617267476739,5.9264,1941.5,1941.1,1.0]
[1617267476938,5.9264,1941.5,1941.1,1.39]
[1617267477345,5.9264,1941.5,1941.4,5.6]
[1617267477751,5.9264,1941.5,1941.4,6.88429245]
[1617267477951,0.38,1942.1,1941.4,8.08429245]
[1617267478151,0.09406894,1942.2,1941.4,8.08429245]
[1617267478152,0.09406894,1942.2,1941.6,0.4]
[1617267478352,0.04406894,1942.2,1941.6,0.4]
[1617267478752,0.04406894,1942.2,1941.6,1.43851957]
[1617267478952,0.43406894,1942.2,1941.4,5.2]